fUSD/lending_fUSD_20260329
["ID","MTS","AMOUNT","RATE_DAILY","PERIOD"]
[419019466,1774761046246,-1000.0,0.000159,2]
[419019467,1774761046255,-1328.44,0.000159,2]
[419019468,1774761046265,-32228.3076,0.000159,2]
[419019469,1774761046274,-150.0,0.000159,2]
[419019470,1774761046284,-150.0,0.000159,2]
[419019471,1774761046293,-150.0,0.000159,2]
[419019472,1774761046302,-150.0,0.000159,2]
[419019473,1774761046313,-151.0,0.000159,2]
[419019474,1774761046322,-151.0,0.000159,2]
[419019475,1774761046332,-151.0,0.000159,2]
[419019476,1774761046341,-151.0,0.000159,2]
[419019477,1774761046352,-417.16662779,0.000159,2]
[419019478,1774761046362,-360.025682,0.000159,2]
[419019479,1774761046372,-360.025682,0.000159,2]
[419019480,1774761046382,-360.025682,0.000159,2]
[419019481,1774761046392,-360.025682,0.000159,2]
[419019482,1774761046402,-33382.30864607,0.000159,2]
[419019483,1774761046412,-181.87716088,0.000159,2]
[419019484,1774761046422,-13757.60381209,0.000159,2]
[419019485,1774761046590,-778.45779093,0.000159,2]
[419019486,1774761046603,-1539.81191336,0.000159,2]
[419019487,1774761046776,-258.203151,0.00015723,2]
[419019488,1774761046785,-258.203151,0.00015723,2]
[419019489,1774761046795,-258.203151,0.00015723,2]
[419019490,1774761046805,-3125.5079316,0.000159,2]
[419019491,1774761046859,-726.65367492,0.000159,2]
[419019492,1774761046871,-1803.57692773,0.000159,2]
[419019493,1774761046882,-21313.99128248,0.000159,2]
[419019495,1774761046895,-890.69821661,0.000159,2]
[419019502,1774761349083,-489.2,0.0001284,2]
[419019503,1774761349108,-200.0,0.00013106,2]
[419019504,1774761349132,-1024.55,0.00013201,2]
[419019505,1774761349157,-300.0,0.00013422,2]
[419019506,1774761349184,-1200.0,0.00013422,2]
[419019507,1774761349208,-150.0,0.00013422,2]
[419019508,1774761349233,-30044.07778149,0.00013423,2]
[419019509,1774761349257,-473.06299928,0.00013423,2]
[419019510,1774761349282,-9820.89885421,0.00013423,2]
[419019511,1774761349307,-751.61514472,0.00013473,2]
[419019512,1774761349331,-183.50106686,0.00013473,2]
[419019513,1774761349355,-13365.0,0.00013479,2]
[419019514,1774761349379,-182.0,0.00013507,2]
[419019515,1774761349404,-500.0,0.00013521,2]
[419019516,1774761349429,-320.75401412,0.00013521,2]
[419019517,1774761349452,-500.0,0.00013521,2]
[419019518,1774761349481,-500.0,0.00013521,2]
[419019519,1774761349510,-500.0,0.00013521,2]
[419019520,1774761349538,-500.0,0.00013521,2]
[419019521,1774761349566,-500.0,0.00013521,2]
[419019522,1774761349594,-500.0,0.00013521,2]
[419019523,1774761349622,-500.0,0.00013521,2]
[419019524,1774761349650,-500.0,0.00013521,2]
[419019525,1774761349680,-500.0,0.00013521,2]
[419019526,1774761349710,-500.0,0.00013521,2]
[419019527,1774761349738,-500.0,0.00013521,2]
[419019528,1774761349767,-500.0,0.00013521,2]
[419019529,1774761349795,-500.0,0.00013521,2]
[419019530,1774761349828,-500.0,0.00013521,2]
[419019531,1774761349856,-500.0,0.00013521,2]
[419019532,1774761349885,-500.0,0.00013521,2]
[419019533,1774761349913,-500.0,0.00013521,2]
[419019534,1774761349942,-440.51735345,0.00013521,2]
[419019535,1774761349971,-500.0,0.00013521,2]
[419019536,1774761350000,-500.0,0.00013521,2]
[419019537,1774761350029,-500.0,0.00013521,2]
[419019538,1774761350058,-500.0,0.00013521,2]
[419019539,1774761350085,-500.0,0.00013521,2]
[419019540,1774761350113,-500.0,0.00013521,2]
[419019541,1774761350139,-259.53144731,0.00013521,2]
[419019542,1774761350162,-500.0,0.00013521,2]
[419019543,1774761350186,-533.71564321,0.00013521,2]
[419019544,1774761350210,-500.0,0.00013521,2]
[419019545,1774761350233,-478.67681789,0.00013521,2]
[419019546,1774761350257,-500.0,0.00013521,2]
[419019547,1774761350280,-500.0,0.00013521,2]
[419019548,1774761350304,-587.07929311,0.00013521,2]
[419019549,1774761350328,-452.33,0.00013521,2]
[419019550,1774761350354,-133468.48958435,0.00013522,2]
[419019551,1774761748910,157.96,6.289e-05,2]
[419019552,1774761749100,157.96,7.546e-05,2]
[419019553,1774761749285,157.96,8.804e-05,2]
[419019554,1774761749684,157.96,0.00010062,2]
[419019556,1774762232091,-157.96,0.0001132,2]
[419019557,1774762232100,-166.66,0.00012499,2]
[419019558,1774762232109,-157.96,0.00012578,2]
[419019559,1774762232118,-341.43044967,0.00012617,2]
[419019560,1774762232127,-126.51276716,0.00012629,2]
[419019561,1774762232266,-1473.48723284,0.00012629,2]
[419019562,1774762232275,-500.0,0.00012745,2]
[419019563,1774762232286,-166.66,0.00012762,2]
[419019564,1774762232296,-1767.9,0.00012979,2]
[419019565,1774762232305,-250.0,0.00013,2]
[419019566,1774762232315,-192.72778892,0.00013014,2]
[419019567,1774762232324,-1250.33253981,0.00013024,2]
[419019568,1774762232335,-3494.50704419,0.00013024,2]
[419019575,1774762238194,-500.0,0.00013023,2]
[419019576,1774762238203,-181.67201311,0.00013023,2]
[419019577,1774762238214,-468.97483533,0.00013023,2]
[419019578,1774762238226,-104.62611491,0.00013023,2]
[419019579,1774762238235,-500.0,0.00013023,2]
[419019580,1774762238245,-424.52780988,0.00013023,2]
[419019581,1774762238255,-506.79090917,0.00013023,2]
[419019582,1774762238264,-500.0,0.00013023,2]
[419019583,1774762238274,-271.16859483,0.00013023,2]
[419019584,1774762238283,-500.0,0.00013023,2]
[419019585,1774762238293,-2495255.160416,0.00013024,2]
[419019586,1774762238303,-166.66,0.00013026,2]
[419019587,1774762238312,-500.0,0.00013073,2]
[419019588,1774762238323,-500.0,0.00013073,2]
[419019589,1774762238334,-454.80496102,0.00013073,2]
[419019590,1774762238344,-500.0,0.00013073,2]
[419019591,1774762238354,-409.82711305,0.00013073,2]
[419019592,1774762238364,-500.0,0.00013073,2]
[419019593,1774762238374,-1200.0,0.00013123,2]
[419019594,1774762238384,-300.0,0.00013123,2]
[419019595,1774762238394,-150.0,0.00013123,2]
[419019596,1774762238404,-2000.0,0.00013124,2]
[419019597,1774762238414,-15049.04,0.00013124,2]
[419019598,1774762238424,-299.99,0.00013124,2]
[419019599,1774762238433,-999.99,0.00013124,2]
[419019600,1774762238443,-150.99,0.00013124,2]
[419019601,1774762238453,-9999.99,0.00013124,2]
[419019602,1774762238462,-224.28305486,0.00013221,2]
[419019603,1774762238472,-166.66,0.00013289,2]
[419019604,1774762238482,-154.00708367,0.00013406,2]
[419019605,1774762238492,-8860.29866165,0.00013406,2]
[419019606,1774762238501,-486.75791101,0.00013406,2]
[419019607,1774762238511,-486.75791101,0.00013406,2]
[419019608,1774762238521,-2489.651,0.00013421,2]
[419019609,1774762238530,-236.987,0.00013421,2]
[419019610,1774762238540,-479.55486846,0.00013422,2]
[419019611,1774762238549,-32749.490958,0.00013422,2]
[419019612,1774762238559,-501.07676314,0.00013422,2]
[419019613,1774762238569,-150.0,0.00013424,2]
[419019614,1774762238579,-150.0,0.00013424,2]
[419019615,1774762238588,-500.0,0.00013424,2]
[419019616,1774762238597,-150.0,0.00013424,2]
[419019617,1774762238607,-158.3155795,0.00013424,2]
[419019619,1774762238616,-500.0,0.00013424,2]
[419019620,1774762238626,-284.07676272,0.00013424,2]
[419019621,1774762238635,-500.0,0.00013424,2]
[419019622,1774762238646,-500.0,0.00013424,2]
[419019623,1774762238655,-500.0,0.00013424,2]
[419019624,1774762238665,-500.0,0.00013424,2]
[419019625,1774762238675,-500.0,0.00013424,2]
[419019626,1774762238684,-500.0,0.00013424,2]
[419019627,1774762238695,-500.0,0.00013424,2]
[419019628,1774762238704,-500.0,0.00013424,2]
[419019629,1774762238714,-500.0,0.00013424,2]
[419019630,1774762238724,-500.0,0.00013424,2]
[419019632,1774762238734,-153.40286809,0.00013424,2]
[419019634,1774762238743,-500.0,0.00013424,2]
[419019635,1774762238753,-500.0,0.00013424,2]
[419019637,1774762238763,-383.60720851,0.00013424,2]
[419019638,1774762238773,-361.86,0.00013424,2]
[419019639,1774762238783,-4110.0568438,0.00013506,2]
[419019640,1774762238792,-272716.8759819,0.00013506,2]
[419019641,1774762238803,-36220.2339305,0.00013506,2]
[419019642,1774762238812,-200.0,0.00013514,2]
[419019643,1774762238822,-151.0,0.00013514,2]
[419019644,1774762238831,-151.0,0.00013514,2]
[419019645,1774762238841,-151.0,0.00013514,2]
[419019646,1774762238851,-151.0,0.00013514,2]
[419019647,1774762238860,-151.0,0.00013514,2]
[419019648,1774762238870,-151.0,0.00013514,2]
[419019649,1774762238880,-151.0,0.00013514,2]
[419019650,1774762238890,-151.0,0.00013514,2]
[419019651,1774762238900,-151.0,0.00013514,2]
[419019652,1774762238910,-151.0,0.00013514,2]
[419019653,1774762238932,-151.0,0.00013514,2]
[419019654,1774762238944,-1751.82507383,0.00013521,2]
[419019655,1774762238955,-1000.0,0.00013522,2]
[419019656,1774762238966,-152.0,0.00013522,3]
[419019657,1774762238976,-32228.3076,0.00013523,2]
[419019658,1774762238986,-1000.0,0.00013523,2]
[419019659,1774762238996,-166.66,0.00013552,2]
[419019660,1774762239007,-150.0,0.000136,2]
[419019661,1774762239017,-1000.0,0.00013621,2]
[419019662,1774762239027,-500.0,0.00013621,2]
[419019663,1774762239038,-8860.29866164,0.00013645,2]
[419019664,1774762239048,-500.0,0.00013673,2]
[419019665,1774762239058,-500.0,0.00013673,2]
[419019666,1774762239068,-500.0,0.00013673,2]
[419019667,1774762239078,-500.0,0.00013673,2]
[419019668,1774762239088,-429.85911728,0.00013673,2]
[419019669,1774762239097,-167.52802512,0.00013673,2]
[419019670,1774762239107,-500.0,0.00013673,2]
[419019671,1774762239117,-500.0,0.00013673,2]
[419019672,1774762239127,-500.0,0.00013673,2]
[419019673,1774762239136,-500.0,0.00013673,2]
[419019674,1774762239146,-32749.49095792,0.00013697,2]
[419019675,1774762239156,-500.0,0.00013698,2]
[419019676,1774762239166,-500.0,0.00013698,2]
[419019677,1774762239176,-500.0,0.00013698,2]
[419019678,1774762239186,-500.0,0.00013698,2]
[419019679,1774762239196,-500.0,0.00013698,2]
[419019680,1774762239206,-500.0,0.00013698,2]
[419019681,1774762239215,-504.79360134,0.00013698,2]
[419019682,1774762239225,-500.0,0.00013698,2]
[419019683,1774762239235,-500.0,0.00013698,2]
[419019684,1774762239245,-500.0,0.00013698,2]
[419019685,1774762239255,-500.0,0.00013698,2]
[419019686,1774762239265,-500.0,0.00013698,2]
[419019687,1774762239275,-500.0,0.00013698,2]
[419019688,1774762239284,-500.0,0.00013698,2]
[419019689,1774762239294,-500.0,0.00013698,2]
[419019690,1774762239303,-500.0,0.00013698,2]
[419019691,1774762239313,-500.0,0.00013698,2]
[419019692,1774762239323,-500.0,0.00013698,2]
[419019693,1774762239332,-500.0,0.00013698,2]
[419019694,1774762239343,-500.0,0.00013698,2]
[419019695,1774762239353,-500.0,0.00013698,2]
[419019696,1774762239362,-500.0,0.00013698,2]
[419019697,1774762239372,-500.0,0.00013698,2]
[419019698,1774762239381,-500.0,0.00013698,2]
[419019699,1774762239391,-500.0,0.00013698,2]
[419019700,1774762239400,-500.0,0.00013698,2]
[419019701,1774762239410,-500.0,0.00013698,2]
[419019702,1774762239420,-500.0,0.00013698,2]
[419019703,1774762239429,-500.0,0.00013698,2]
[419019704,1774762239439,-500.0,0.00013698,2]
[419019705,1774762239448,-500.0,0.00013698,2]
[419019706,1774762239458,-247.12633402,0.00013698,2]
[419019707,1774762239468,-500.0,0.00013698,2]
[419019708,1774762239477,-500.0,0.00013698,2]
[419019709,1774762239487,-500.0,0.00013698,2]
[419019710,1774762239687,-500.0,0.00013698,2]
[419019711,1774762239698,-500.0,0.00013698,2]
[419019712,1774762239707,-548.79475367,0.00013698,2]
[419019713,1774762239717,-500.0,0.00013698,2]
[419019714,1774762239727,-500.0,0.00013698,2]
[419019715,1774762239736,-500.0,0.00013698,2]
[419019716,1774762239746,-500.0,0.00013698,2]
[419019717,1774762239756,-500.0,0.00013698,2]
[419019718,1774762239766,-500.0,0.00013698,2]
[419019719,1774762239776,-500.0,0.00013698,2]
[419019720,1774762239786,-500.0,0.00013698,2]
[419019721,1774762239796,-500.0,0.00013698,2]
[419019722,1774762239805,-500.0,0.00013698,2]
[419019723,1774762239815,-500.0,0.00013698,2]
[419019724,1774762239825,-500.0,0.00013698,2]
[419019725,1774762239835,-500.0,0.00013698,2]
[419019726,1774762239844,-500.0,0.00013698,2]
[419019727,1774762239854,-500.0,0.00013698,2]
[419019728,1774762239864,-500.0,0.00013698,2]
[419019729,1774762239874,-500.0,0.00013698,2]
[419019730,1774762239883,-500.0,0.00013698,2]
[419019731,1774762239893,-500.0,0.00013698,2]
[419019732,1774762239903,-500.0,0.00013698,2]
[419019733,1774762239913,-500.0,0.00013698,2]
[419019734,1774762239923,-500.0,0.00013698,2]
[419019735,1774762239934,-390.56107017,0.00013698,2]
[419019736,1774762239944,-505.23406925,0.00013698,2]
[419019737,1774762239954,-500.0,0.00013698,2]
[419019738,1774762239964,-500.0,0.00013698,2]
[419019739,1774762239974,-500.0,0.00013698,2]
[419019740,1774762239984,-500.0,0.00013698,2]
[419019741,1774762239993,-500.0,0.00013698,2]
[419019742,1774762240004,-500.0,0.00013698,2]
[419019743,1774762240014,-217.38717604,0.00013698,2]
[419019744,1774762240024,-500.0,0.00013698,2]
[419019745,1774762240034,-500.0,0.00013698,2]
[419019746,1774762240043,-500.0,0.00013698,2]
[419019747,1774762240053,-500.0,0.00013698,2]
[419019748,1774762240063,-500.0,0.00013698,2]
[419019749,1774762240073,-500.0,0.00013698,2]
[419019750,1774762240082,-289.69293567,0.00013698,2]
[419019751,1774762240092,-515.10379154,0.00013698,2]
[419019752,1774762240102,-587.57676003,0.00013698,2]
[419019753,1774762240111,-500.0,0.00013698,2]
[419019754,1774762240121,-500.0,0.00013698,2]
[419019755,1774762240131,-500.0,0.00013698,2]
[419019756,1774762240140,-500.0,0.00013698,2]
[419019757,1774762240150,-500.0,0.00013698,2]
[419019758,1774762240160,-500.0,0.00013698,2]
[419019759,1774762240172,-500.0,0.00013698,2]
[419019760,1774762240182,-500.0,0.00013698,2]
[419019761,1774762240191,-642.6141901,0.00013698,2]
[419019762,1774762240201,-500.0,0.00013698,2]
[419019763,1774762240211,-500.0,0.00013698,2]
[419019764,1774762240220,-569.13922893,0.00013698,2]
[419019765,1774762240230,-500.0,0.00013698,2]
[419019766,1774762240239,-500.0,0.00013698,2]
[419019767,1774762240249,-500.0,0.00013698,2]
[419019768,1774762240259,-500.0,0.00013698,2]
[419019769,1774762240269,-500.0,0.00013698,2]
[419019770,1774762240278,-500.0,0.00013698,2]
[419019771,1774762240288,-500.0,0.00013698,2]
[419019772,1774762240297,-500.0,0.00013698,2]
[419019774,1774762240307,-500.0,0.00013698,2]
[419019775,1774762240316,-500.0,0.00013698,2]
[419019776,1774762240326,-500.0,0.00013698,2]
[419019777,1774762240336,-500.0,0.00013698,2]
[419019778,1774762240347,-500.0,0.00013698,2]
[419019779,1774762240357,-150.16805847,0.00013698,2]
[419019780,1774762240367,-500.0,0.00013698,2]
[419019781,1774762240376,-500.0,0.00013698,2]
[419019782,1774762240387,-500.0,0.00013698,2]
[419019783,1774762240396,-500.0,0.00013698,2]
[419019784,1774762240406,-500.0,0.00013698,2]
[419019785,1774762240416,-500.0,0.00013698,2]
[419019786,1774762240427,-500.0,0.00013698,2]
[419019787,1774762240436,-500.0,0.00013698,2]
[419019788,1774762240446,-500.0,0.00013698,2]
[419019789,1774762240455,-500.0,0.00013698,2]
[419019790,1774762240465,-500.0,0.00013698,2]
[419019791,1774762240474,-514.11510476,0.00013698,2]
[419019792,1774762240484,-500.0,0.00013698,2]
[419019793,1774762240493,-500.0,0.00013698,2]
[419019794,1774762240503,-500.0,0.00013698,2]
[419019795,1774762240513,-500.0,0.00013698,2]
[419019796,1774762240523,-500.0,0.00013698,2]
[419019797,1774762240532,-179.21652627,0.00013698,2]
[419019798,1774762240542,-500.0,0.00013698,2]
[419019799,1774762240551,-500.0,0.00013698,2]
[419019800,1774762240561,-500.0,0.00013698,2]
[419019801,1774762240571,-500.0,0.00013698,2]
[419019802,1774762240580,-563.09074423,0.00013698,2]
[419019803,1774762240590,-500.0,0.00013698,2]
[419019804,1774762240600,-500.0,0.00013698,2]
[419019805,1774762240609,-500.0,0.00013698,2]
[419019806,1774762240619,-505.93653105,0.00013698,2]
[419019807,1774762240628,-511.61768064,0.00013698,2]
[419019808,1774762240637,-500.0,0.00013698,2]
[419019809,1774762240647,-500.0,0.00013698,2]
[419019810,1774762240656,-500.0,0.00013698,2]
[419019811,1774762240666,-500.0,0.00013698,2]
[419019812,1774762240675,-500.0,0.00013698,2]
[419019813,1774762240685,-361.86,0.00013698,2]
[419019814,1774762240694,-505.30350392,0.00013698,2]
[419019815,1774762240703,-500.0,0.00013698,2]
[419019816,1774762240712,-500.0,0.00013698,2]
[419019817,1774762240722,-500.0,0.00013698,2]
[419019818,1774762240731,-500.0,0.00013698,2]
[419019819,1774762240741,-500.0,0.00013698,2]
[419019820,1774762240750,-500.0,0.00013698,2]
[419019821,1774762240759,-500.0,0.00013698,2]
[419019822,1774762240768,-500.0,0.00013698,2]
[419019823,1774762240778,-500.0,0.00013698,2]
[419019824,1774762240787,-500.0,0.00013698,2]
[419019825,1774762240796,-500.0,0.00013698,2]
[419019826,1774762240806,-500.0,0.00013698,2]
[419019827,1774762240816,-500.0,0.00013698,2]
[419019828,1774762240825,-500.0,0.00013698,2]
[419019829,1774762240849,-500.0,0.00013698,2]
[419019830,1774762240861,-500.0,0.00013698,2]
[419019831,1774762240872,-500.0,0.00013698,2]
[419019832,1774762240883,-500.0,0.00013698,2]
[419019833,1774762240894,-150.0,0.00013699,2]
[419019834,1774762240905,-150.0,0.00013699,2]
[419019835,1774762240916,-150.0,0.00013699,2]
[419019836,1774762240926,-150.0,0.00013699,2]
[419019837,1774762240936,-371.26,0.00013699,2]
[419019838,1774762240950,-500.0,0.00013699,2]
[419019839,1774762240961,-500.0,0.00013699,2]
[419019840,1774762240971,-500.0,0.00013699,2]
[419019841,1774762240982,-163.45026092,0.00013699,2]
[419019842,1774762240992,-337.48789903,0.00013699,2]
[419019843,1774762241003,-500.0,0.00013699,2]
[419019844,1774762241014,-500.25743768,0.00013699,2]
[419019845,1774762241024,-501.02351697,0.00013699,2]
[419019846,1774762241034,-192.3169817,0.00013699,2]
[419019847,1774762241046,-500.0,0.00013699,2]
[419019848,1774762241056,-166.65702548,0.00013699,2]
[419019849,1774762241067,-500.0,0.00013699,2]
[419019850,1774762241077,-500.0,0.00013699,2]
[419019851,1774762241087,-500.0,0.00013699,2]
[419019852,1774762241097,-321.78262716,0.00013699,2]
[419019853,1774762241108,-165.93,0.000137,2]
[419019854,1774762241118,-215.52,0.000137,2]
[419019855,1774762241128,-1476.04,0.000137,2]
[419019856,1774762241138,-162.15,0.000137,2]
[419019857,1774762241148,-2686.1,0.000137,2]
[419019858,1774762241158,-2686.1,0.000137,2]
[419019859,1774762241168,-2686.1,0.000137,2]
[419019860,1774762241179,-2686.1,0.000137,2]
[419019861,1774762241188,-2686.1,0.000137,2]
[419019862,1774762241198,-486.75791101,0.00013762,2]
[419019863,1774762241208,-486.75791101,0.00013762,2]
[419019864,1774762241218,-166.66,0.00013815,2]
[419019865,1774762241228,-479.55486842,0.00013835,2]
[419019866,1774762241239,-8860.29866164,0.00013884,2]
[419019867,1774762241250,-180.933304,0.00013971,2]
[419019868,1774762241261,-361.86,0.00013972,2]
[419019869,1774762241272,-150.0,0.00013973,2]
[419019870,1774762241282,-150.0,0.00013973,2]
[419019871,1774762241292,-150.0,0.00013973,2]
[419019872,1774762241302,-32749.49095792,0.00013973,2]
[419019873,1774762241312,-513.0,0.00014,2]
[419019874,1774762241323,-11733.4473581,0.00014006,2]
[419019875,1774762241334,-200.0,0.00014062,2]
[419019876,1774762241345,-500.0,0.00014089,2]
[419019877,1774762241356,-486.75791101,0.00014119,2]
[419019878,1774762241365,-486.75791101,0.00014119,2]
[419019879,1774762241376,-8860.29866164,0.00014123,2]
[419019880,1774762241386,-1500.0,0.00014168,2]
[419019881,1774762241397,-1600.0,0.00014207,2]
[419019882,1774762241406,-1000.0,0.00014221,2]
[419019883,1774762241416,-1000.0,0.00014221,2]
[419019885,1774762241426,-501.32363081,0.00014221,2]
[419019887,1774762241436,-255.0,0.00014226,2]
[419019889,1774762241446,-500.0,0.00014233,2]
[419019890,1774762241461,-500.0,0.00014233,2]
[419019891,1774762241472,-500.0,0.00014233,2]
[419019892,1774762241482,-500.0,0.0001424,2]
[419019893,1774762241493,-165.20736909,0.0001424,2]
[419019894,1774762241503,-361.86,0.00014246,2]
[419019895,1774762241513,-150.0,0.00014247,2]
[419019896,1774762241523,-150.0,0.00014247,2]
[419019897,1774762241534,-150.0,0.00014247,2]
[419019898,1774762241544,-1000.0,0.00014247,2]
[419019899,1774762241554,-502.54797101,0.00014247,2]
[419019900,1774762241565,-501.26333658,0.00014247,2]
[419019901,1774762241576,-1000.0,0.00014247,2]
[419019902,1774762241586,-502.75954762,0.00014247,2]
[419019903,1774762241597,-1000.0,0.00014247,2]
[419019904,1774762241607,-500.69436483,0.00014247,2]
[419019905,1774762241617,-1000.0,0.00014247,2]
[419019906,1774762241627,-631.42723728,0.00014247,2]
[419019907,1774762241637,-479.55486842,0.00014248,2]
[419019908,1774762241647,-32749.49095792,0.00014248,2]
[419019909,1774762241657,-500.0,0.0001425,2]
[419019910,1774762241667,-500.0,0.0001425,2]
[419019911,1774762241677,-500.61251814,0.0001425,2]
[419019912,1774762241688,-500.0,0.0001425,2]
[419019913,1774762241697,-500.0,0.0001425,2]
[419019914,1774762241708,-501.2412305,0.0001425,2]
[419019915,1774762241717,-500.0,0.0001425,2]
[419019916,1774762241728,-164.64289673,0.000143,2]
[419019917,1774762241738,-8860.29866164,0.00014362,2]
[419019918,1774762241748,-420.0,0.0001439,2]
[419019919,1774762241759,-303.4827321,0.000144,2]
[419019920,1774762241769,-161.75757125,0.000144,2]
[419019921,1774762241779,-1680.0,0.00014436,2]
[419019922,1774762241789,-160.0,0.00014438,2]
[419019923,1774762241799,-959.8630956,0.00014438,2]
[419019924,1774762241810,-486.75791101,0.00014475,2]
[419019925,1774762241820,-361.88338678,0.0001452,2]
[419019926,1774762241831,-32749.49095792,0.00014523,2]
[419019927,1774762241841,-160.0,0.00014551,7]
[419019928,1774762241854,-154.53434814,0.00014585,2]
[419019929,1774762241864,-8860.29866164,0.00014601,2]
[419019930,1774762241874,-200.0,0.0001461,2]
[419019931,1774762242041,-479.55486842,0.00014661,2]
[419019932,1774762242052,-501.07676314,0.00014661,2]
[419019933,1774762242061,-196.877428,0.00014712,7]
[419019934,1774762242071,-2000.0,0.00014716,2]
[419019935,1774762242080,-374.30379425,0.00014735,2]
[419019936,1774762242090,-2000.0,0.00014765,2]
[419019937,1774762242100,-1500.0,0.00014768,2]
[419019938,1774762242110,-509.48219482,0.00014768,2]
[419019939,1774762242120,-160.0,0.00014771,7]
[419019940,1774762242129,-217.8882415,0.00014772,2]
[419019941,1774762242139,-332.180941,0.00014773,7]
[419019942,1774762242149,-206.253348,0.00014773,7]
[419019943,1774762242159,-349.016489,0.00014773,7]
[419019944,1774762242168,-1000.0,0.00014781,2]
[419019945,1774762242178,-1000.0,0.00014781,2]
[419019946,1774762242187,-502.07720266,0.00014781,2]
[419019947,1774762242197,-1000.0,0.00014788,2]
[419019948,1774762242207,-898.88065305,0.00014795,2]
[419019949,1774762242216,-684.37970889,0.00014795,2]
[419019950,1774762242226,-1500.0,0.00014795,2]
[419019951,1774762242235,-504.43813318,0.00014795,2]
[419019952,1774762242245,-374.86231475,0.00014798,2]
[419019953,1774762242254,-1000.0,0.00014798,2]
[419019954,1774762242263,-1000.0,0.00014798,2]
[419019955,1774762242273,-875.52475925,0.00014798,2]
[419019956,1774762242283,-1000.0,0.00014798,2]
[419019957,1774762242293,-32749.49095792,0.00014799,2]
[419019958,1774762242303,-160.419272,0.00014819,7]
[419019959,1774762242312,-486.75791101,0.00014831,2]
[419019960,1774762242322,-8860.29866164,0.0001484,2]
[419019961,1774762242332,-500.0,0.00014871,2]
[419019962,1774762242342,-172.16887983,0.000149,2]
[419019963,1774762242352,-172.16887982,0.000149,2]
[419019964,1774762242362,-250.0,0.00014957,2]
[419019965,1774762242372,-300.0,0.00015,2]
[419019966,1774762242382,-9552.16786547,0.00015012,2]
[419019967,1774762242391,-500.0,0.00015012,2]
[419019968,1774762242401,-500.0,0.00015012,2]
[419019969,1774762242410,-500.0,0.00015012,2]
[419019970,1774762242420,-500.0,0.00015012,2]
[419019971,1774762242429,-500.0,0.00015012,2]
[419019972,1774762242439,-500.0,0.00015012,2]
[419019973,1774762242450,-500.0,0.00015012,2]
[419019974,1774762242459,-500.0,0.00015012,2]
[419019975,1774762242468,-500.0,0.00015012,2]
[419019976,1774762242478,-500.0,0.00015012,2]
[419019977,1774762242488,-500.0,0.00015012,2]
[419019978,1774762242498,-500.0,0.00015012,2]
[419019979,1774762242508,-500.0,0.00015012,2]
[419019980,1774762242519,-500.0,0.00015012,2]
[419019981,1774762242529,-500.0,0.00015012,2]
[419019982,1774762242539,-500.0,0.00015012,2]
[419019983,1774762242548,-500.0,0.00015012,2]
[419019984,1774762242558,-500.0,0.00015012,2]
[419019985,1774762242567,-500.0,0.00015012,2]
[419019986,1774762242577,-500.0,0.00015012,2]
[419019987,1774762242586,-500.0,0.00015012,2]